[Event "Titled Tuesday Blitz November 14 Early 2023"]
[White "Josgar05"]
[Black "Kubicka, Anna"]
[BlackFideId "1152254"]
[WhiteElo "2314"]
[BlackElo "2502"]
[Result "0-1"]
[Round "5"]
[TimeControl "180+1"]
[Date "2023.11.14"]
[WhiteClock "0:00:29"]
[BlackClock "0:00:17"]
[Board "168"]

1. Nf3 {[%clk 0:03:00]}  Nf6 {[%clk 0:02:59]} 2. b3 {[%clk 0:03:00]}  g6 {[%clk 0:03:00]} 3. Bb2 {[%clk 0:03:00]}  Bg7 {[%clk 0:03:00]} 4. g3 {[%clk 0:03:00]}  O-O {[%clk 0:03:01]} 5. Bg2 {[%clk 0:03:01]}  d6 {[%clk 0:03:02]} 6. d4 {[%clk 0:03:01]}  Nc6 {[%clk 0:03:00]} 7. O-O {[%clk 0:03:00]}  e5 {[%clk 0:02:59]} 8. c4 {[%clk 0:02:44]}  exd4 {[%clk 0:02:52]} 9. Nxd4 {[%clk 0:02:43]}  Nxd4 {[%clk 0:02:51]} 10. Bxd4 {[%clk 0:02:42]}  c6 {[%clk 0:02:49]} 11. Bb2 {[%clk 0:02:39]}  Qe7 {[%clk 0:02:41]} 12. Nc3 {[%clk 0:02:38]}  Bf5 {[%clk 0:02:37]} 13. Qd2 {[%clk 0:02:37]}  Rad8 {[%clk 0:02:35]} 14. Rfd1 {[%clk 0:02:35]}  Ne4 {[%clk 0:02:23]} 15. Nxe4 {[%clk 0:02:35]}  Bxb2 {[%clk 0:02:24]} 16. Qxb2 {[%clk 0:02:33]}  Bxe4 {[%clk 0:02:24]} 17. Bxe4 {[%clk 0:02:33]}  Qxe4 {[%clk 0:02:25]} 18. Rd4 {[%clk 0:02:33]}  Qe5 {[%clk 0:02:19]} 19. Rad1 {[%clk 0:02:33]}  Rfe8 {[%clk 0:02:18]} 20. e3 {[%clk 0:02:32]}  c5 {[%clk 0:02:11]} 21. R4d2 {[%clk 0:02:32]}  Qxb2 {[%clk 0:02:11]} 22. Rxb2 {[%clk 0:02:32]}  Re6 {[%clk 0:02:07]} 23. Rbd2 {[%clk 0:02:31]}  Kf8 {[%clk 0:02:07]} 24. h4 {[%clk 0:02:27]}  Ke7 {[%clk 0:02:00]} 25. Kg2 {[%clk 0:02:27]}  h5 {[%clk 0:01:59]} 26. Kf3 {[%clk 0:02:25]}  a6 {[%clk 0:01:57]} 27. Ke2 {[%clk 0:02:23]}  b5 {[%clk 0:01:58]} 28. Rb1 {[%clk 0:02:03]}  Rb8 {[%clk 0:01:56]} 29. Rdb2 {[%clk 0:02:02]}  Kf6 {[%clk 0:01:39]} 30. a4 {[%clk 0:02:00]}  Re7 {[%clk 0:01:37]} 31. Rd2 {[%clk 0:01:53]}  Ke6 {[%clk 0:01:35]} 32. cxb5 {[%clk 0:01:52]}  axb5 {[%clk 0:01:35]} 33. a5 {[%clk 0:01:51]}  b4 {[%clk 0:01:33]} 34. Rbd1 {[%clk 0:01:41]}  Rd7 {[%clk 0:01:31]} 35. e4 {[%clk 0:01:41]}  Ra8 {[%clk 0:01:30]} 36. Ra1 {[%clk 0:01:39]}  Ra6 {[%clk 0:01:29]} 37. f4 {[%clk 0:01:38]}  d5 {[%clk 0:01:25]} 38. exd5+ {[%clk 0:01:35]}  Rxd5 {[%clk 0:01:25]} 39. Rc2 {[%clk 0:01:34]}  Kd6 {[%clk 0:01:22]} 40. Ke3 {[%clk 0:01:33]}  f5 {[%clk 0:01:20]} 41. Rc4 {[%clk 0:01:30]}  Kc6 {[%clk 0:01:18]} 42. Rc2 {[%clk 0:01:26]}  Kb5 {[%clk 0:01:12]} 43. Rca2 {[%clk 0:01:21]}  Rd7 {[%clk 0:01:11]} 44. Ra4 {[%clk 0:01:17]}  Rda7 {[%clk 0:01:08]} 45. Rd1 {[%clk 0:01:01]}  Re6+ {[%clk 0:01:07]} 46. Kf3 {[%clk 0:00:56]}  Rxa5 {[%clk 0:01:07]} 47. Rxa5+ {[%clk 0:00:56]}  Kxa5 {[%clk 0:01:08]} 48. Rd7 {[%clk 0:00:54]}  Kb5 {[%clk 0:01:04]} 49. Rb7+ {[%clk 0:00:51]}  Kc6 {[%clk 0:01:03]} 50. Ra7 {[%clk 0:00:51]}  Kb6 {[%clk 0:00:46]} 51. Ra8 {[%clk 0:00:50]}  Kb7 {[%clk 0:00:33]} 52. Rd8 {[%clk 0:00:48]}  Kc7 {[%clk 0:00:30]} 53. Ra8 {[%clk 0:00:48]}  Kd7 {[%clk 0:00:26]} 54. Rb8 {[%clk 0:00:45]}  Kc7 {[%clk 0:00:18]} 55. Ra8 {[%clk 0:00:45]}  Rc6 {[%clk 0:00:15]} 56. Rg8 {[%clk 0:00:40]}  Kb6 {[%clk 0:00:14]} 57. Rb8+ {[%clk 0:00:38]}  Ka5 {[%clk 0:00:11]} 58. Ra8+ {[%clk 0:00:38]}  Ra6 {[%clk 0:00:10]} 59. Rc8 {[%clk 0:00:37]}  Kb5 {[%clk 0:00:09]} 60. Rb8+ {[%clk 0:00:37]}  Rb6 {[%clk 0:00:09]} 61. Rc8 {[%clk 0:00:38]}  Ra6 {[%clk 0:00:08]} 62. Rb8+ {[%clk 0:00:37]}  Kc6 {[%clk 0:00:09]} 63. Rc8+ {[%clk 0:00:37]}  Kd7 {[%clk 0:00:08]} 64. Rxc5 {[%clk 0:00:36]}  Ra3 {[%clk 0:00:09]} 65. Rd5+ {[%clk 0:00:29]}  Kc6 {[%clk 0:00:09]} 66. Rd3 {[%clk 0:00:29]}  Kc5 {[%clk 0:00:10]} 67. Ke2 {[%clk 0:00:24]}  Ra2+ {[%clk 0:00:10]} 68. Kf3 {[%clk 0:00:24]}  Rc2 {[%clk 0:00:10]} 69. Rd8 {[%clk 0:00:21]}  Rc3+ {[%clk 0:00:10]} 70. Kf2 {[%clk 0:00:20]}  Rxb3 {[%clk 0:00:10]} 71. Rg8 {[%clk 0:00:20]}  Rb2+ {[%clk 0:00:09]} 72. Kf3 {[%clk 0:00:21]}  b3 {[%clk 0:00:10]} 73. Rxg6 {[%clk 0:00:21]}  Rb1 {[%clk 0:00:09]} 74. Rg8 {[%clk 0:00:21]}  b2 {[%clk 0:00:09]} 75. Rc8+ {[%clk 0:00:18]}  Kd6 {[%clk 0:00:09]} 76. Rb8 {[%clk 0:00:18]}  Rf1+ {[%clk 0:00:08]} 77. Ke2 {[%clk 0:00:18]}  b1=Q {[%clk 0:00:09]} 78. Rxb1 {[%clk 0:00:18]}  Rxb1 {[%clk 0:00:10]} 79. Kd3 {[%clk 0:00:19]}  Rb3+ {[%clk 0:00:10]} 80. Kc4 {[%clk 0:00:19]}  Rxg3 {[%clk 0:00:11]} 81. Kd4 {[%clk 0:00:20]}  Rf3 {[%clk 0:00:11]} 82. Kc4 {[%clk 0:00:21]}  Rxf4+ {[%clk 0:00:11]} 83. Kd3 {[%clk 0:00:22]}  Rxh4 {[%clk 0:00:12]} 84. Ke2 {[%clk 0:00:23]}  Rg4 {[%clk 0:00:13]} 85. Kf2 {[%clk 0:00:24]}  Ke5 {[%clk 0:00:13]} 86. Kf3 {[%clk 0:00:25]}  h4 {[%clk 0:00:13]} 87. Kf2 {[%clk 0:00:26]}  h3 {[%clk 0:00:14]} 88. Kf3 {[%clk 0:00:27]}  h2 {[%clk 0:00:14]} 89. Kf2 {[%clk 0:00:27]}  h1=Q {[%clk 0:00:15]} 90. Ke3 {[%clk 0:00:28]}  Qh3+ {[%clk 0:00:15]} 91. Kf2 {[%clk 0:00:29]}  Rg2+ {[%clk 0:00:16]} 92. Kf1 {[%clk 0:00:29]}  Qh1# {[%clk 0:00:17]} 0-1


[Site "https://www.chess.com"]

[Event "Titled Tuesday Blitz November 14 Early 2023"]
[White "Buscar, Michael"]
[Black "Kovalevsky, Stanislav"]
[WhiteFideId "2603616"]
[BlackFideId "13508598"]
[WhiteElo "2285"]
[BlackElo "2472"]
[Result "1-0"]
[Round "5"]
[TimeControl "180+1"]
[Date "2023.11.14"]
[WhiteClock "0:00:19"]
[BlackClock "0:00:12"]
[Board "173"]

1. d4 {[%clk 0:03:00]}  d5 {[%clk 0:02:56]} 2. c4 {[%clk 0:03:00]}  c6 {[%clk 0:02:56]} 3. Nf3 {[%clk 0:02:59]}  Nf6 {[%clk 0:02:56]} 4. e3 {[%clk 0:02:57]}  Ne4 {[%clk 0:02:50]} 5. cxd5 {[%clk 0:02:52]}  cxd5 {[%clk 0:02:51]} 6. Bb5+ {[%clk 0:02:52]}  Bd7 {[%clk 0:02:50]} 7. Bxd7+ {[%clk 0:02:51]}  Nxd7 {[%clk 0:02:49]} 8. O-O {[%clk 0:02:51]}  e6 {[%clk 0:02:49]} 9. Nfd2 {[%clk 0:02:51]}  Bd6 {[%clk 0:02:42]} 10. Nxe4 {[%clk 0:02:51]}  dxe4 {[%clk 0:02:43]} 11. Nc3 {[%clk 0:02:51]}  f5 {[%clk 0:02:37]} 12. Qh5+ {[%clk 0:02:39]}  g6 {[%clk 0:02:37]} 13. Qh6 {[%clk 0:02:38]}  Qe7 {[%clk 0:02:31]} 14. Nb5 {[%clk 0:02:32]}  Bb8 {[%clk 0:02:25]} 15. Bd2 {[%clk 0:02:27]}  a6 {[%clk 0:02:24]} 16. Rac1 {[%clk 0:02:24]}  Bxh2+ {[%clk 0:02:09]} 17. Kxh2 {[%clk 0:02:11]}  axb5 {[%clk 0:02:09]} 18. a3 {[%clk 0:02:11]}  Nf6 {[%clk 0:02:01]} 19. Bb4 {[%clk 0:02:08]}  Ng4+ {[%clk 0:02:00]} 20. Kg1 {[%clk 0:02:07]}  Nxh6 {[%clk 0:01:58]} 21. Bxe7 {[%clk 0:02:06]}  Kxe7 {[%clk 0:01:59]} 22. Rc7+ {[%clk 0:02:07]}  Kf6 {[%clk 0:01:47]} 23. Rfc1 {[%clk 0:02:04]}  Nf7 {[%clk 0:01:41]} 24. R1c5 {[%clk 0:01:57]}  b4 {[%clk 0:01:27]} 25. axb4 {[%clk 0:01:49]}  b6 {[%clk 0:01:13]} 26. R5c6 {[%clk 0:01:47]}  Rhb8 {[%clk 0:01:09]} 27. d5 {[%clk 0:01:42]}  Nd8 {[%clk 0:01:05]} 28. Rd6 {[%clk 0:01:36]}  Ke5 {[%clk 0:00:47]} 29. Rcd7 {[%clk 0:01:31]}  exd5 {[%clk 0:00:37]} 30. f4+ {[%clk 0:00:41]}  exf3 {[%clk 0:00:35]} 31. gxf3 {[%clk 0:00:41]}  Ne6 {[%clk 0:00:20]} 32. f4+ {[%clk 0:00:22]}  Kf6 {[%clk 0:00:21]} 33. Rxh7 {[%clk 0:00:23]}  Ra1+ {[%clk 0:00:18]} 34. Kf2 {[%clk 0:00:23]}  Ra2 {[%clk 0:00:18]} 35. Kf3 {[%clk 0:00:23]}  Rxb2 {[%clk 0:00:18]} 36. Rc7 {[%clk 0:00:23]}  Rxb4 {[%clk 0:00:16]} 37. Rcc6 {[%clk 0:00:23]}  Re8 {[%clk 0:00:17]} 38. Rxd5 {[%clk 0:00:23]}  Rb3 {[%clk 0:00:16]} 39. Rdd6 {[%clk 0:00:23]}  Kg7 {[%clk 0:00:16]} 40. Rxe6 {[%clk 0:00:23]}  Rxe6 {[%clk 0:00:17]} 41. Rxe6 {[%clk 0:00:24]}  b5 {[%clk 0:00:17]} 42. Re7+ {[%clk 0:00:24]}  Kf6 {[%clk 0:00:17]} 43. Rb7 {[%clk 0:00:24]}  Ke6 {[%clk 0:00:17]} 44. Ke2 {[%clk 0:00:23]}  b4 {[%clk 0:00:16]} 45. Kd2 {[%clk 0:00:22]}  Kd5 {[%clk 0:00:15]} 46. Rb6 {[%clk 0:00:22]}  Ke4 {[%clk 0:00:14]} 47. Re6+ {[%clk 0:00:21]}  Kf3 {[%clk 0:00:14]} 48. Rxg6 {[%clk 0:00:21]}  Rxe3 {[%clk 0:00:14]} 49. Rh6 {[%clk 0:00:17]}  Ke4 {[%clk 0:00:12]} 50. Re6+ {[%clk 0:00:17]}  Kxf4 {[%clk 0:00:12]} 51. Rxe3 {[%clk 0:00:18]}  b3 {[%clk 0:00:12]} 52. Rxb3 {[%clk 0:00:18]}  Kg4 {[%clk 0:00:13]} 53. Ke2 {[%clk 0:00:18]}  f4 {[%clk 0:00:12]} 54. Kf2 {[%clk 0:00:19]} 1-0


[Site "https://www.chess.com"]

[Event "Titled Tuesday Blitz November 14 Early 2023"]
[White "Estrada Nieto, Julian"]
[Black "alfianasybullina"]
[WhiteFideId "5101018"]
[WhiteElo "2434"]
[BlackElo "2267"]
[Result "1/2-1/2"]
[Round "5"]
[TimeControl "180+1"]
[Date "2023.11.14"]
[WhiteClock "0:00:07"]
[BlackClock "0:00:20"]
[Board "176"]

1. e4 {[%clk 0:03:00]}  c6 {[%clk 0:03:00]} 2. d4 {[%clk 0:02:55]}  d5 {[%clk 0:03:00]} 3. exd5 {[%clk 0:02:56]}  cxd5 {[%clk 0:03:01]} 4. Bd3 {[%clk 0:02:56]}  Nc6 {[%clk 0:03:02]} 5. c3 {[%clk 0:02:54]}  Nf6 {[%clk 0:03:02]} 6. Nf3 {[%clk 0:02:54]}  Bg4 {[%clk 0:02:58]} 7. Bf4 {[%clk 0:02:53]}  Bxf3 {[%clk 0:02:52]} 8. Qxf3 {[%clk 0:02:47]}  e6 {[%clk 0:02:52]} 9. O-O {[%clk 0:02:45]}  Qb6 {[%clk 0:02:51]} 10. Nd2 {[%clk 0:02:24]}  Be7 {[%clk 0:02:49]} 11. Rab1 {[%clk 0:02:12]}  O-O {[%clk 0:02:48]} 12. Qh3 {[%clk 0:02:11]}  Rfe8 {[%clk 0:02:23]} 13. Nf3 {[%clk 0:02:08]}  Ne4 {[%clk 0:02:16]} 14. Rfe1 {[%clk 0:01:52]}  f5 {[%clk 0:02:11]} 15. Re2 {[%clk 0:01:39]}  Bf6 {[%clk 0:01:56]} 16. Rbe1 {[%clk 0:01:28]}  Ne7 {[%clk 0:01:53]} 17. Ne5 {[%clk 0:01:22]}  g5 {[%clk 0:01:44]} 18. Qh5 {[%clk 0:01:09]}  gxf4 {[%clk 0:01:26]} 19. Bxe4 {[%clk 0:01:04]}  Bxe5 {[%clk 0:01:18]} 20. Bxf5 {[%clk 0:00:49]}  Nxf5 {[%clk 0:01:13]} 21. Rxe5 {[%clk 0:00:48]}  Qc6 {[%clk 0:01:04]} 22. Qg5+ {[%clk 0:00:46]}  Ng7 {[%clk 0:01:01]} 23. h4 {[%clk 0:00:39]}  Rf8 {[%clk 0:01:01]} 24. Rxe6 {[%clk 0:00:38]}  Rf5 {[%clk 0:00:52]} 25. Rxc6 {[%clk 0:00:20]}  Rxg5 {[%clk 0:00:50]} 26. Rc7 {[%clk 0:00:19]}  Rg4 {[%clk 0:00:46]} 27. Ree7 {[%clk 0:00:14]}  Re8 {[%clk 0:00:44]} 28. Rxe8+ {[%clk 0:00:11]}  Nxe8 {[%clk 0:00:43]} 29. Rxb7 {[%clk 0:00:11]}  Rg7 {[%clk 0:00:43]} 30. Rb8 {[%clk 0:00:08]}  Kf7 {[%clk 0:00:41]} 31. Rd8 {[%clk 0:00:07]}  Nc7 {[%clk 0:00:38]} 32. Kf1 {[%clk 0:00:04]}  Ke7 {[%clk 0:00:38]} 33. Rc8 {[%clk 0:00:04]}  Kd7 {[%clk 0:00:38]} 34. Rb8 {[%clk 0:00:04]}  Kc6 {[%clk 0:00:37]} 35. b3 {[%clk 0:00:04]}  Rf7 {[%clk 0:00:37]} 36. c4 {[%clk 0:00:04]}  dxc4 {[%clk 0:00:37]} 37. bxc4 {[%clk 0:00:05]}  Na6 {[%clk 0:00:36]} 38. Rb3 {[%clk 0:00:04]}  Re7 {[%clk 0:00:35]} 39. d5+ {[%clk 0:00:04]}  Kc5 {[%clk 0:00:35]} 40. Ra3 {[%clk 0:00:04]}  Nb4 {[%clk 0:00:34]} 41. Ra4 {[%clk 0:00:03]}  Kxc4 {[%clk 0:00:34]} 42. a3 {[%clk 0:00:03]}  Kxd5 {[%clk 0:00:31]} 43. Rxb4 {[%clk 0:00:04]}  Ke5 {[%clk 0:00:30]} 44. Rb5+ {[%clk 0:00:04]}  Kf6 {[%clk 0:00:29]} 45. f3 {[%clk 0:00:05]}  h6 {[%clk 0:00:29]} 46. Kf2 {[%clk 0:00:04]}  Re3 {[%clk 0:00:29]} 47. Ra5 {[%clk 0:00:04]}  Re7 {[%clk 0:00:29]} 48. Ra6+ {[%clk 0:00:04]}  Kg7 {[%clk 0:00:29]} 49. a4 {[%clk 0:00:04]}  Rb7 {[%clk 0:00:28]} 50. g4 {[%clk 0:00:04]}  fxg3+ {[%clk 0:00:28]} 51. Kxg3 {[%clk 0:00:04]}  Kh7 {[%clk 0:00:28]} 52. h5 {[%clk 0:00:04]}  Kg7 {[%clk 0:00:28]} 53. Kg4 {[%clk 0:00:04]}  Rb4+ {[%clk 0:00:27]} 54. f4 {[%clk 0:00:05]}  Rb7 {[%clk 0:00:27]} 55. a5 {[%clk 0:00:05]}  Kh7 {[%clk 0:00:26]} 56. Rg6 {[%clk 0:00:05]}  Rb5 {[%clk 0:00:25]} 57. Ra6 {[%clk 0:00:04]}  Rb7 {[%clk 0:00:25]} 58. Rc6 {[%clk 0:00:04]}  Kg7 {[%clk 0:00:23]} 59. Kf5 {[%clk 0:00:04]}  Rf7+ {[%clk 0:00:23]} 60. Ke5 {[%clk 0:00:04]}  Re7+ {[%clk 0:00:23]} 61. Re6 {[%clk 0:00:04]}  Rb7 {[%clk 0:00:23]} 62. Rd6 {[%clk 0:00:03]}  Rb5+ {[%clk 0:00:23]} 63. Rd5 {[%clk 0:00:01]}  Rb7 {[%clk 0:00:23]} 64. f5 {[%clk 0:00:01]}  Re7+ {[%clk 0:00:22]} 65. Kf4 {[%clk 0:00:01]}  Kf7 {[%clk 0:00:21]} 66. Rd6 {[%clk 0:00:01]}  Rb7 {[%clk 0:00:20]} 67. Rxh6 {[%clk 0:00:01]}  Kg7 {[%clk 0:00:20]} 68. Kg5 {[%clk 0:00:01]}  Rb1 {[%clk 0:00:19]} 69. Rg6+ {[%clk 0:00:02]}  Kf7 {[%clk 0:00:19]} 70. Ra6 {[%clk 0:00:03]}  Rg1+ {[%clk 0:00:19]} 71. Kh6 {[%clk 0:00:04]}  Kg8 {[%clk 0:00:18]} 72. Rxa7 {[%clk 0:00:04]}  Rf1 {[%clk 0:00:18]} 73. a6 {[%clk 0:00:04]}  Rxf5 {[%clk 0:00:18]} 74. Rb7 {[%clk 0:00:05]}  Rf6+ {[%clk 0:00:18]} 75. Kg5 {[%clk 0:00:05]}  Rxa6 {[%clk 0:00:19]} 76. h6 {[%clk 0:00:05]}  Kh8 {[%clk 0:00:19]} 77. h7 {[%clk 0:00:05]}  Ra8 {[%clk 0:00:17]} 78. Rc7 {[%clk 0:00:05]}  Rb8 {[%clk 0:00:17]} 79. Rd7 {[%clk 0:00:05]}  Ra8 {[%clk 0:00:18]} 80. Re7 {[%clk 0:00:06]}  Rb8 {[%clk 0:00:18]} 81. Rf7 {[%clk 0:00:06]}  Ra8 {[%clk 0:00:19]} 82. Kg6 {[%clk 0:00:07]}  Ra6+ {[%clk 0:00:19]} 83. Rf6 {[%clk 0:00:06]}  Rxf6+ {[%clk 0:00:19]} 84. Kxf6 {[%clk 0:00:07]}  Kxh7 {[%clk 0:00:20]} 1/2-1/2


[Site "https://www.chess.com"]

[Event "Titled Tuesday Blitz November 14 Early 2023"]
[White "ATM622"]
[Black "Quirke, Jeffrey"]
[BlackFideId "2013029"]
[WhiteElo "2429"]
[BlackElo "2261"]
[Result "1-0"]
[Round "5"]
[TimeControl "180+1"]
[Date "2023.11.14"]
[WhiteClock "0:01:00"]
[BlackClock "0:00:00"]
[Board "177"]

1. d4 {[%clk 0:03:00]}  Nf6 {[%clk 0:02:59]} 2. c4 {[%clk 0:03:00]}  g6 {[%clk 0:02:59]} 3. g3 {[%clk 0:03:01]}  Bg7 {[%clk 0:02:58]} 4. Bg2 {[%clk 0:03:01]}  d5 {[%clk 0:02:57]} 5. Nf3 {[%clk 0:03:02]}  O-O {[%clk 0:02:56]} 6. O-O {[%clk 0:03:02]}  dxc4 {[%clk 0:02:55]} 7. Na3 {[%clk 0:02:55]}  c3 {[%clk 0:02:55]} 8. bxc3 {[%clk 0:02:54]}  c5 {[%clk 0:02:55]} 9. Ne5 {[%clk 0:02:52]}  Nbd7 {[%clk 0:02:39]} 10. Nac4 {[%clk 0:02:49]}  Nxe5 {[%clk 0:02:30]} 11. Nxe5 {[%clk 0:02:42]}  Nd7 {[%clk 0:02:29]} 12. Nxd7 {[%clk 0:02:37]}  Qxd7 {[%clk 0:02:29]} 13. dxc5 {[%clk 0:02:36]}  Qb5 {[%clk 0:02:07]} 14. Be3 {[%clk 0:02:34]}  Rb8 {[%clk 0:01:37]} 15. Rb1 {[%clk 0:02:31]}  Qa5 {[%clk 0:01:31]} 16. c6 {[%clk 0:02:28]}  b5 {[%clk 0:01:07]} 17. Bf4 {[%clk 0:01:58]}  e5 {[%clk 0:00:59]} 18. Qd6 {[%clk 0:01:42]}  Bf5 {[%clk 0:00:49]} 19. e4 {[%clk 0:01:41]}  Rbd8 {[%clk 0:00:20]} 20. Qc5 {[%clk 0:01:36]}  Be6 {[%clk 0:00:15]} 21. Bxe5 {[%clk 0:01:35]}  Bxe5 {[%clk 0:00:15]} 22. Qxe5 {[%clk 0:01:36]}  a6 {[%clk 0:00:13]} 23. a4 {[%clk 0:01:24]}  Bc4 {[%clk 0:00:08]} 24. Rfe1 {[%clk 0:01:16]}  Rc8 {[%clk 0:00:08]} 25. axb5 {[%clk 0:01:15]}  axb5 {[%clk 0:00:08]} 26. Qc5 {[%clk 0:01:12]}  Qxc3 {[%clk 0:00:07]} 27. e5 {[%clk 0:01:12]}  Qa5 {[%clk 0:00:05]} 28. Rec1 {[%clk 0:01:08]}  Qc7 {[%clk 0:00:04]} 29. f4 {[%clk 0:01:05]}  Rfe8 {[%clk 0:00:04]} 30. Rd1 {[%clk 0:01:03]}  Red8 {[%clk 0:00:05]} 31. Rd6 {[%clk 0:01:01]}  Ra8 {[%clk 0:00:00]} 32. Rbd1 {[%clk 0:01:00]} 1-0


[Site "https://www.chess.com"]

[Event "Titled Tuesday Blitz November 14 Early 2023"]
[White "Arnold, Ken"]
[Black "Rodriguez Santiago, Jaime"]
[WhiteFideId "2056836"]
[BlackFideId "3100898"]
[WhiteElo "2427"]
[BlackElo "2256"]
[Result "0-1"]
[Round "5"]
[TimeControl "180+1"]
[Date "2023.11.14"]
[WhiteClock "0:00:19"]
[BlackClock "0:00:27"]
[Board "179"]

1. d4 {[%clk 0:02:55]}  Nf6 {[%clk 0:02:48]} 2. Nf3 {[%clk 0:02:54]}  d5 {[%clk 0:02:46]} 3. g3 {[%clk 0:02:54]}  e6 {[%clk 0:02:44]} 4. Bg2 {[%clk 0:02:55]}  c5 {[%clk 0:02:43]} 5. O-O {[%clk 0:02:55]}  Nc6 {[%clk 0:02:42]} 6. c3 {[%clk 0:02:55]}  Bd6 {[%clk 0:02:41]} 7. Bf4 {[%clk 0:02:55]}  O-O {[%clk 0:02:39]} 8. Nbd2 {[%clk 0:02:54]}  cxd4 {[%clk 0:02:37]} 9. Bxd6 {[%clk 0:02:53]}  Qxd6 {[%clk 0:02:36]} 10. Nxd4 {[%clk 0:02:53]}  e5 {[%clk 0:02:35]} 11. Nxc6 {[%clk 0:02:52]}  bxc6 {[%clk 0:02:36]} 12. e4 {[%clk 0:02:48]}  Ba6 {[%clk 0:02:33]} 13. Re1 {[%clk 0:02:48]}  Rad8 {[%clk 0:02:31]} 14. exd5 {[%clk 0:02:48]}  cxd5 {[%clk 0:02:29]} 15. Nf3 {[%clk 0:02:43]}  Rfe8 {[%clk 0:02:27]} 16. Qa4 {[%clk 0:02:40]}  Ne4 {[%clk 0:02:15]} 17. Rad1 {[%clk 0:02:26]}  Nc5 {[%clk 0:02:13]} 18. Qa3 {[%clk 0:02:21]}  e4 {[%clk 0:02:00]} 19. Nd4 {[%clk 0:02:15]}  Qb6 {[%clk 0:01:59]} 20. Re3 {[%clk 0:01:58]}  Nd3 {[%clk 0:01:57]} 21. Bf1 {[%clk 0:01:38]}  Bb7 {[%clk 0:01:29]} 22. Bxd3 {[%clk 0:01:34]}  exd3 {[%clk 0:01:28]} 23. Rexd3 {[%clk 0:01:29]}  h5 {[%clk 0:01:27]} 24. h4 {[%clk 0:01:28]}  Re4 {[%clk 0:01:24]} 25. R3d2 {[%clk 0:01:21]}  Rde8 {[%clk 0:01:23]} 26. Qb4 {[%clk 0:01:18]}  Qa6 {[%clk 0:01:14]} 27. Qb5 {[%clk 0:01:14]}  Qxb5 {[%clk 0:00:54]} 28. Nxb5 {[%clk 0:01:14]}  Re1+ {[%clk 0:00:50]} 29. Kh2 {[%clk 0:01:12]}  d4 {[%clk 0:00:50]} 30. Nd6 {[%clk 0:01:10]}  Bf3 {[%clk 0:00:40]} 31. Nxe8 {[%clk 0:01:07]}  Bxd1 {[%clk 0:00:39]} 32. Kg2 {[%clk 0:00:45]}  Ba4 {[%clk 0:00:36]} 33. Nc7 {[%clk 0:00:39]}  Bc6+ {[%clk 0:00:36]} 34. f3 {[%clk 0:00:39]}  dxc3 {[%clk 0:00:36]} 35. bxc3 {[%clk 0:00:39]}  Rc1 {[%clk 0:00:35]} 36. Na6 {[%clk 0:00:33]}  Rxc3 {[%clk 0:00:34]} 37. Rf2 {[%clk 0:00:33]}  f6 {[%clk 0:00:33]} 38. Nb4 {[%clk 0:00:32]}  Bb7 {[%clk 0:00:31]} 39. a4 {[%clk 0:00:31]}  g5 {[%clk 0:00:31]} 40. a5 {[%clk 0:00:31]}  g4 {[%clk 0:00:31]} 41. a6 {[%clk 0:00:30]}  Bxf3+ {[%clk 0:00:31]} 42. Kg1 {[%clk 0:00:29]}  Rc1+ {[%clk 0:00:31]} 43. Rf1 {[%clk 0:00:29]}  Rc4 {[%clk 0:00:31]} 44. Rb1 {[%clk 0:00:28]}  Be4 {[%clk 0:00:29]} 45. Rb2 {[%clk 0:00:28]}  Rc3 {[%clk 0:00:27]} 46. Re2 {[%clk 0:00:22]}  f5 {[%clk 0:00:27]} 47. Rd2 {[%clk 0:00:21]}  Rxg3+ {[%clk 0:00:26]} 48. Kf2 {[%clk 0:00:22]}  Rh3 {[%clk 0:00:27]} 49. Rd8+ {[%clk 0:00:21]}  Kf7 {[%clk 0:00:27]} 50. Rd7+ {[%clk 0:00:22]}  Ke6 {[%clk 0:00:27]} 51. Rxa7 {[%clk 0:00:22]}  g3+ {[%clk 0:00:27]} 52. Ke3 {[%clk 0:00:21]}  g2+ {[%clk 0:00:27]} 53. Kf2 {[%clk 0:00:21]}  Rg3 {[%clk 0:00:26]} 54. Kg1 {[%clk 0:00:20]}  Rh3 {[%clk 0:00:26]} 55. Rg7 {[%clk 0:00:20]}  Rh1+ {[%clk 0:00:26]} 56. Kf2 {[%clk 0:00:20]}  Rf1+ {[%clk 0:00:26]} 57. Ke3 {[%clk 0:00:20]}  g1=Q+ {[%clk 0:00:26]} 58. Rxg1 {[%clk 0:00:20]}  Rxg1 {[%clk 0:00:27]} 59. a7 {[%clk 0:00:19]}  Ra1 {[%clk 0:00:27]} 0-1


[Site "https://www.chess.com"]

[Event "Titled Tuesday Blitz November 14 Early 2023"]
[White "Sarkar, Justin"]
[Black "Buchenau, Frank"]
[WhiteFideId "2010011"]
[BlackFideId "4604350"]
[WhiteElo "2243"]
[BlackElo "2423"]
[Result "0-1"]
[Round "5"]
[TimeControl "180+1"]
[Date "2023.11.14"]
[WhiteClock "0:00:00"]
[BlackClock "0:01:26"]
[Board "181"]

1. d4 {[%clk 0:02:37]}  e6 {[%clk 0:02:59]} 2. c4 {[%clk 0:02:31]}  Nf6 {[%clk 0:02:59]} 3. Nc3 {[%clk 0:02:27]}  Bb4 {[%clk 0:02:58]} 4. e3 {[%clk 0:02:27]}  O-O {[%clk 0:02:57]} 5. Bd3 {[%clk 0:02:27]}  c5 {[%clk 0:02:56]} 6. Nf3 {[%clk 0:02:23]}  Bxc3+ {[%clk 0:02:55]} 7. bxc3 {[%clk 0:02:22]}  d6 {[%clk 0:02:56]} 8. O-O {[%clk 0:02:19]}  Nc6 {[%clk 0:02:56]} 9. Qc2 {[%clk 0:01:51]}  e5 {[%clk 0:02:53]} 10. d5 {[%clk 0:01:34]}  Ne7 {[%clk 0:02:52]} 11. Nd2 {[%clk 0:01:26]}  g6 {[%clk 0:02:29]} 12. h3 {[%clk 0:01:12]}  Bf5 {[%clk 0:02:22]} 13. e4 {[%clk 0:01:05]}  Bd7 {[%clk 0:02:21]} 14. Re1 {[%clk 0:00:42]}  Nh5 {[%clk 0:02:18]} 15. Nf1 {[%clk 0:00:38]}  f5 {[%clk 0:02:16]} 16. exf5 {[%clk 0:00:24]}  Bxf5 {[%clk 0:02:08]} 17. Bg5 {[%clk 0:00:08]}  Bxd3 {[%clk 0:02:03]} 18. Qxd3 {[%clk 0:00:07]}  Nf4 {[%clk 0:02:00]} 19. Qd2 {[%clk 0:00:02]}  Qd7 {[%clk 0:01:51]} 20. Ng3 {[%clk 0:00:02]}  Kg7 {[%clk 0:01:39]} 21. Ne4 {[%clk 0:00:02]}  h6 {[%clk 0:01:36]} 22. Bxe7 {[%clk 0:00:01]}  Qxe7 {[%clk 0:01:36]} 23. Qe3 {[%clk 0:00:00]}  Rf5 {[%clk 0:01:26]} 0-1


[Site "https://www.chess.com"]